Cogmind - Beta 10.1 @@@ ROGUE MODE // 2020.10.13 @ 23:26:39 Player: Ischenous Result: Destroyed by as-44762 with Assembled Maul Performance ------------- Evolutions (0) 0 Regions Visited (2) 400 Robots Destroyed (13) 65 Value Destroyed (418) 418 Prototype IDs (2) 40 Alien Tech Used (0) 0 Bonus (-25) -25 TOTAL SCORE: 898 Bonus ------- Friendly Fire -25 Cogmind --------- Core Integrity 0/250 Matter 238/300 Energy 100/100 System Corruption 0% Temperature Cool (85) Movement Hovering (76) Location -10/Mines Parts ------- > --- POWER (1) -------- (None) > --- PROPULSION (2) --- Combat Airjet Combat Airjet > --- UTILITY (2) ------ Medium Storage Unit Targeting Computer > --- WEAPON (2) ------- Flak Cannon > --- INVENTORY (8) ---- Improved Ion Engine Carbon-fiber Leg Heat Sink Signal Interpreter Targeting Computer Assault Rifle Light Assault Rifle Mini Grenade Launcher Peak State ------------ > --- POWER ------------ Light Deuterium Engine > --- PROPULSION ------- Combat Airjet Combat Airjet > --- UTILITY ---------- Medium Storage Unit Targeting Computer > --- WEAPON ----------- Flak Cannon > --- INVENTORY -------- Improved Ion Engine Heat Sink Signal Interpreter Targeting Computer Assault Rifle Light Assault Rifle Light Assault Rifle Mini Grenade Launcher [Rating: 19] Favorites ----------- Power Ion Engine Engine Ion Engine Propulsion Aluminum Leg Leg Aluminum Leg Hover Unit Combat Airjet Utility Targeting Computer Storage Medium Storage Unit Processor Targeting Computer Weapon EM Shotgun Energy Gun EM Shotgun Ballistic Gun Light Assault Rifle Ballistic Cannon Flak Cannon Build | -11 -10 -10 ------- Run | Scr Mat Min Slots Evolved . | . . . Power . | . . . Propulsion . | . . . Utility . | . . . Weapon . | . . . Parts Attached 23 | 6 10 7 Power 2 | 1 . 1 Engine 2 | 1 . 1 Core . | . . . Reactor . | . . . Propulsion 7 | 2 . 5 Treads . | . . . Leg 5 | 2 . 3 Wheel . | . . . Hover 2 | . . 2 Flight . | . . . Utility 5 | 1 4 . Device . | . . . Storage 4 | 1 3 . Processor 1 | . 1 . Hackware . | . . . Protection . | . . . Artifact . | . . . Weapon 9 | 2 6 1 Energy Gun 5 | 1 4 . Energy Cannon . | . . . Ballistic Gun 3 | 1 2 . Ballistic Cannon 1 | . . 1 Launcher . | . . . Special Weapon . | . . . Impact Weapon . | . . . Slashing Weapon . | . . . Piercing Weapon . | . . . Special Melee Weapon . | . . . Unidentified Prototypes . | . . . Parts Lost 10 | . 3 7 Power 1 | . . 1 Propulsion 4 | . . 4 Utility . | . . . Weapon 5 | . 3 2 Highest Loss Streak 5 | . 3 5 Average Slot Usage (%) 95 | . 99 90 Engine 13 | . 14 13 Leg 24 | . 28 20 Hover 1 | . . 3 Storage 14 | . 14 14 Processor 13 | . 13 14 Energy Gun 13 | . 8 20 Ballistic Gun 11 | . 19 . Ballistic Cannon 1 | . . 3 Naked Turns . | . . . Heaviest Build 19 | 11 19 19 Greatest Support 44 | 20 20 44 Greatest Overweight (x) 6 | . . 6 Average Overweight (x) . | . . . Largest Inventory Capacity 8 | 6 8 8 Average Capacity 7 | 5 7 8 Most Carried 8 | 4 8 8 Average Carried 5 | 1 4 7 Final Capacity 8 | 6 8 8 Final Carried 8 | 2 8 8 Class Distribution -------------------- 100% | Mutant Dominant Class ---------------- Mutant | -10/Materials Mutant | -10/Mines Resources | -11 -10 -10 ----------- Run | Scr Mat Min Matter Collected 491 | 216 131 144 Remotely . | . . . Salvage Created 436 | . 218 218 Parts 31 | . 14 17 Haulers Intercepted 1 | . 1 . Recyclers Shooed . | . . . Parts Field Recycled . | . . . Retrieved Matter . | . . . Parts Self-Destructed . | . . . Prevented . | . . . Kills | -11 -10 -10 ------- Run | Scr Mat Min Combat Hostiles Destroyed 11 | . 4 7 Guns 6 | . 4 2 Cannons 4 | . . 4 AOE 1 | . . 1 Classes Destroyed 5 | . 2 3 Hauler 1 | . 1 . Mechanic 1 | . . 1 Swarmer 2 | . . 2 Grunt 7 | . 4 3 Demolisher 2 | . . 2 Best Kill Streak 4 | . 2 4 Combat Bots Only 4 | . 2 4 Max Kills in Single Turn 2 | . 1 2 Gunslinging . | . . . Exploded 1 | . . 1 Melee . | . . . Uniques/NPCs Destroyed . | . . . Combat | -11 -10 -10 -------- Run | Scr Mat Min Damage Taken 1179 | . 486 693 Core 278 | . 104 174 Absorbed by Shields . | . . . Core Remaining (%) 100 | 100 . . Volleys Fired 55 | . 30 25 Largest 2 | . 2 2 Hottest 90 | . 70 90 Shots Fired 81 | . 50 31 Gun 63 | . 50 13 Cannon 18 | . . 18 Launcher . | . . . Special . | . . . Kinetic 50 | . 32 18 Thermal 18 | . 18 . Explosive . | . . . Electromagnetic 13 | . . 13 Robot Hit Streak 11 | . 11 5 Robot Miss Streak 8 | . 1 8 Penetration Max . | . . . Secondary Targets 1 | . . 1 Max Gunslinging Chain 1 | . . 1 Shots Hit Robots 69 | . 41 28 Core Hits 31 | . 12 19 Critical Hits . | . . . Critical Kills . | . . . Critical Parts Destroyed . | . . . Melee Attacks . | . . . Impact . | . . . Slashing . | . . . Piercing . | . . . Sneak Attacks . | . . . Combat Hostiles . | . . . Follow-up Attacks . | . . . Damage Inflicted 777 | . 376 401 Guns 502 | . 376 126 Cannons 189 | . . 189 Explosions 86 | . . 86 Melee . | . . . Ramming . | . . . Kinetic 370 | . 181 189 Thermal 281 | . 195 86 Explosive . | . . . Electromagnetic 126 | . . 126 Impact . | . . . Slashing . | . . . Piercing . | . . . Highest Corruption . | . . . Average Corruption . | . . . Corruption Purged . | . . . Overload Shots . | . . . Overflow Damage . | . . . Projectiles . | . . . Explosions . | . . . Melee . | . . . Knockbacks 6 | . . 6 Impact . | . . . Kinetic 6 | . . 6 Secondary . | . . . Self-Inflicted Damage 21 | . . 21 Shots 1 | . . 1 Rammed . | . . . Targets Rammed . | . . . Kicked . | . . . Crushed . | . . . Highest Temperature 250 | . 250 219 Average Temperature 100 | . 140 60 Received Heat Transfer 369 | . 240 129 Effects 5 | . 5 . Energy Bleed 2 | . 2 . Interference 3 | . 3 . Siege Activations . | . . . Robots Corrupted . | . . . Combat Hostiles . | . . . Parts Fried . | . . . Impact Corruptions . | . . . Robots Melted . | . . . Combat Hostiles . | . . . Parts Melted . | . . . Heat Transferred 571 | . 521 50 Parts Sabotaged . | . . . Parts Stolen . | . . . Parts Stripped . | . . . Power Chain Reactions 1 | . . 1 Missiles Intercepted . | . . . Alert | -11 -10 -10 ------- Run | Scr Mat Min Peak Influence 130 | . 104 130 Initial . | . . . Average 45 | . 53 42 Maximum Alert Level . | . . . Low Security (%) 100 | 100 100 100 Level 1 . | . . . Level 2 . | . . . Level 3 . | . . . Level 4 . | . . . Level 5 . | . . . High Security . | . . . Max Security . | . . . Squads Dispatched 2 | . . 2 Investigation 1 | . . 1 Extermination . | . . . Reinforcement . | . . . Assault 1 | . . 1 Garrison . | . . . Intercept . | . . . Construction Impeded . | . . . Haulers Reinforced . | . . . Stealth | -11 -10 -10 --------- Run | Scr Mat Min Distress Signals . | . . . Communications Jammed . | . . . Distress Signals . | . . . Times Spotted 27 | . 5 22 Peak Tracking Total 8 | . 4 8 Tactical Retreats 3 | . . 3 Traps | -11 -10 -10 ------- Run | Scr Mat Min Traps Triggered 1 | . 1 . Indirectly . | . . . Trap Hack Attempts . | . . . Triggered . | . . . Disarmed . | . . . Reprogrammed . | . . . Reused . | . . . Traps Extracted . | . . . Installed . | . . . Triggered . | . . . Machines | -11 -10 -10 ---------- Run | Scr Mat Min Machines Disabled . | . . . Max in Single Turn . | . . . Machines Sabotaged . | . . . Garrisons Compromised . | . . . Overloaded Fab Kills . | . . . Fab Network Shutdowns . | . . . Hacking | -11 -10 -10 --------- Run | Scr Mat Min Machines Accessed 4 | . 3 1 Terminals 2 | . 2 . Fabricators . | . . . Repair Stations . | . . . Recycling Units 1 | . 1 . Scanalyzers . | . . . Garrison Access . | . . . Total Hacks 10 | . 9 1 Successful 6 | . 5 1 Failed 4 | . 4 . Catastrophic . | . . . Database Lockouts . | . . . Manual . | . . . Terminals 6 | . 6 . Fabricators . | . . . Repair Stations . | . . . Recycling Units 3 | . 3 . Scanalyzers . | . . . Garrison Access . | . . . Terminal Hacks 6 | . 5 1 Record 1 | . 1 . Prototype ID Bank 1 | . 1 . Open Door 1 | . . 1 Alert Level 1 | . 1 . Locate Traps 1 | . 1 . Security Status 1 | . 1 . Fabricator Hacks . | . . . Repair Station Hacks . | . . . Recycling Unit Hacks . | . . . Scanalyzer . | . . . Garrison Access Hacks . | . . . Unauthorized Hacks . | . . . Terminals . | . . . Fabricators . | . . . Repair Stations . | . . . Recycling Units . | . . . Scanalyzers . | . . . Garrison Access . | . . . Data Cores Recovered . | . . . Used . | . . . Hacking Detections 1 | . 1 . Full Trace Events . | . . . Feedback Events . | . . . Feedback Blocked . | . . . Robot Schematics Acquired . | . . . Robots Built . | . . . Matter . | . . . Time . | . . . Total Robot Build Rating . | . . . Part Schematics Acquired . | . . . Parts Built . | . . . Matter . | . . . Time . | . . . Total Part Build Rating . | . . . Parts Repaired . | . . . Time . | . . . Parts Recycled . | . . . Recycled Matter . | . . . Retrieved Matter . | . . . Retrieved Components . | . . . Parts Scanalyzed . | . . . Part Schematics Acquired . | . . . Parts Damaged . | . . . Bothacking | -11 -10 -10 ------------ Run | Scr Mat Min Used RIF Installer . | . . . Robots Hacked . | . . . Non-combat . | . . . Combat . | . . . Robot Hacks Applied . | . . . Relay Couplers Released . | . . . Robots Rewired . | . . . Allies Hacked . | . . . Hacks Repelled . | . . . Allies | -11 -10 -10 -------- Run | Scr Mat Min Total Allies 1 | . . 1 Largest Group 1 | . . 1 Highest-Rated Group 31 | . . 31 Highest-Rated Ally 31 | . . 31 Total Orders . | . . . Ally Attacks 4 | . . 4 Total Damage 62 | . . 62 Kills . | . . . Allies Corrupted . | . . . Allies Melted . | . . . Intel | -11 -10 -10 ------- Run | Scr Mat Min Robot Analysis Total . | . . . Derelict Logs Recovered 1 | . . 1 Drone Launches . | . . . Drone Recoveries . | . . . Exploration | -11 -10 -10 ------------- Run | Scr Mat Min Turns Passed 849 | 71 459 319 Spaces Moved 556 | 57 292 207 Core 18 | 15 . 3 Treads . | . . . Legs 510 | 42 292 176 Wheels . | . . . Hover 28 | . . 28 Flight . | . . . Fastest Speed 50 | 50 120 76 Average Speed 117 | 101 120 118 Slowest Speed 350 | 120 120 350 Overloaded Moves . | . . . Propulsion Burnouts . | . . . Robots Hopped . | . . . Cave-ins Triggered . | . . . Exploration Rate (%) 28 | 3 36 47 Regions Visited 2 Branch Regions 1 Pre-discovered Areas . | . . . Known Exits Taken . | . . . Unknown Exits Taken 2 | 1 1 . Scrap Searched 1 | . . 1 Spaces Dug . | . . . Terrain Destroyed 7 | . . 7 Melee . | . . . Projectile . | . . . AOE 7 | . . 7 Terrain Rammed . | . . . Walls Destroyed . | . . . Machines Disabled . | . . . Actions | -11 -10 -10 --------- Run | Scr Mat Min Total 675 | 70 353 252 Wait 6 | . 6 . Move 554 | 56 291 207 Hop . | . . . Pick Up 30 | 8 13 9 Fast Attach . | . . . Attach 15 | 6 4 5 Detach . | . . . Swap 8 | . 6 2 Drop 7 | . 3 4 Fire 55 | . 30 25 Melee . | . . . Ram . | . . . Kick . | . . . Crush . | . . . Escape Stasis . | . . . Rewire . | . . . Trap . | . . . Miscellaneous . | . . . Route ------- -11/Scrapyard -10/Materials -10/Mines (discovered 1 exit: Exi) History --------- Turn | Location | Event 12 | -11/Scrapyard | Discovered new exit (range 13) 72 | -11/Scrapyard | Entered Materials 293 | -10/Materials | Lost 3 parts (3w) 310 | -10/Materials | Build established: Mutant 468 | -10/Materials | Discovered new exit (range 16) 531 | -10/Materials | Entered Mines 537 | -10/Mines | Met a Derelict shopkeep closing up shop 596 | -10/Mines | Met a Derelict testing a Signal Generator 670 | -10/Mines | Core integrity fell below 50% 707 | -10/Mines | Identified exit to Exiles 740 | -10/Mines | Assembled infested the area 745 | -10/Mines | Assisted by a Guerilla fighting off Assembled 795 | -10/Mines | Core integrity fell below 20% 813 | -10/Mines | Lost 5 parts (3n2w) 835 | -10/Mines | Joined a pair of Derelicts in attacking an 0b10 outpost 850 | -10/Mines | Destroyed by as-44762 with Assembled Maul Last Messages --------------- 00818_ Acquired 60 matter. 00819_ Acquired 3 matter. 00820_ The unstable cave ceiling collapses. 00825_ Acquired 3 matter. 00826_ Acquired 5 matter. 00828_ Acquired Lgt. Assault Rifle. 00831_ R-06 Scavenger collects Flight Unit. 00834_ R-06 Scavenger collects Lgt. Assault Rifle. 00835_ A derelict emerges from the shadows: "We've had our eye on this brand new outpost for a little while, just waiting for an opportunity to strike. Need some help?" 00836_ Machine disabled. 00838_ Acquired Imp. Ion Engine. 00839_ VB-BSB(g) destroyed. 00839_ Dropped Lgt. Assault Rifle. 00841_ Acquired Carbon-fiber Leg. 00842_ as-49542 knocked back. 00844_ as-44762 knocked back. 00845_ Lgt. Deuterium Engine destroyed. 00850_ as-68534 destroyed. Map ----- +----------------------------------------------------+ | X #?????????????????????????????????????? | | #?????????????????????????????????????? | | # #?????????????????????????????????????? | | # #?????????????????????????????????????? | | # #?????????????????????????????????????? | | # #?????????????????????????????????????? | | # #?????????????????????????????????????? | | ###########?????????????????????????????????????? | | ##?????????????????????????????????????????????? | | ##??###???????????????????????????????????????? | | ### ####????????????????????????????????????? | | ######???????????????????????????????? | | ???????????????????????????????? | | ???????????????????????????????? | | ##??????????????????????????????????? | | ##?????????????????????????????????? | | # ##????????????????????????????????? | | # #????????????????????????????????? | | ## #????????????????????????????????? | | ?## ### ????????????????????????????? | | ??## ##??# ####????######????????????????????? | | #### ##????#??????##"!!"##???????????????????? | | " [ #???????????#""!] "#???????????????????? | | "%!"#%! #???????????#%[=[[Y#???????????????????? | | # %!# #???????????##!!% ##???????????????????? | | #*%"## #???????????###/@####??????????????????? | | #%[#### #???????????# aga ##?????????????????? | | #=* #?###?????????###a #?????????????????? | | ### #????????????## ## ##????????????????? | | ??# #???????????## % #????????????????? | | ??# #??????????## ##???????????????? | | ??# #??????????# #???????????????? | | ??# #??????????# = #?????????????? | | ??# #??????????## =% ???????????? | | ??# #???????????# #### ##???????????? | | ??# ###?????????# #???# %* #????????????? | | ??# #?????????# #???## = ##????????????? | | ??# #?????????# #?????## ##?????????????? | | ??### #??????#### #???????# % ##??????????????? | | ????# #???#### # ##??????? ##???????????????? | | ????# #?#### # %##?????? ##????????????????? | | ????# ### # # #???????##?????????????????? | | ???## # ! #??????????????????????????? | | ??## # ##??????????????????????????? | | ?## ##???????????????????????????? | | ?# ## # #???????????????????????????? | | ## # # #???????????????????????????? | | # # # ####???????????????????????????? | | #### # ###??????????????????????????????? | | #?#### #????????????????????????????????? | +----------------------------------------------------+ Best States ------------- Heat Dissipation 25 Energy Generation 14 Energy Capacity 250 Matter Stores 300 Matter Capacity 300 Sight Range 16 Terrain Scan Density 10 Evasion (%) 50 Targeting Accuracy 5 Item Schematics ----------------- None Robot Schematics ------------------ None Fabricated ------------ Nothing Alien Tech Used ----------------- None Achievements -------------- None Challenges ------------ None Game ------ Seed ArmoredRecoilField Manual? 0 Play Time 00:18:42 Cumulative 93.3 hours Start 2020.10.13 @ 22:58:50 End 2020.10.13 @ 23:26:39 Sessions 1 Manual Loads 0 Difficulty Rogue Special Mode None Game No. 72 Rogue 72 Adventurer 0 Explorer 0 Win Type - Total 0 Types 0/0/0/0/0/0/0/0/0 Lore% 34 Gallery% 37 Achievement% 28 Wizard Run 0 Options --------- ASCII 0 Keyboard 0 Movement Arrows Keybinds 0 Fullscreen 1 Font 18/SmallcapsGlow Map View 76x50 Tactical HUD 1 Map Filters NONE Filters NONE Steam 1 RUN: fb159a33-287b-4a70-aa99-7a1f667789d2